bitfinex/quotes_BTCUSD_20211001
["timestamp","ask_amount","ask_price","bid_price","bid_amount"]
[1633052788417,0.85675378,43738.0,43733.0,0.10209347]
[1633052788552,0.30336201,43737.0,43733.0,0.10209347]
[1633052788754,0.343146,43735.0,43733.0,0.10209347]
[1633052788957,0.5186202,43734.0,43733.0,0.10209347]
[1633052789356,0.52350387,43734.0,43733.0,0.10209347]
[1633052789554,0.6275397,43734.0,43733.0,0.10209347]
[1633052789753,1.0850957,43734.0,43733.0,0.10209347]
[1633052790751,1.1380957,43734.0,43733.0,0.10209347]
[1633052792152,1.0850957,43734.0,43733.0,0.10209347]
[1633052792352,1.2300657,43734.0,43733.0,0.10209347]
[1633052792755,1.2850657,43734.0,43733.0,0.10209347]
[1633052794157,1.23136078,43734.0,43733.0,0.10209347]
[1633052794758,1.28336078,43734.0,43733.0,0.10209347]
[1633052795361,1.28336078,43734.0,43733.0,0.32529347]
[1633052795362,0.53122775,43734.0,43733.0,0.32529347]
[1633052795561,0.38373138,43747.0,43734.0,0.75]
[1633052795760,0.38373138,43747.0,43735.0,0.1747001]
[1633052795957,0.38373138,43747.0,43736.0,0.0005301]
[1633052796358,0.343035,43743.0,43739.0,0.09399468]
[1633052796759,0.343035,43743.0,43737.0,0.22082523]
[1633052797157,0.343035,43743.0,43735.0,0.27330176]
[1633052797419,0.57174,43743.0,43734.0,0.0202]
[1633052797560,0.22762548,43739.0,43734.0,0.0202]
[1633052797960,0.3101566,43739.0,43734.0,0.0202]
[1633052798156,0.18253112,43739.0,43734.0,0.0202]
[1633052798555,0.443064,43739.0,43734.0,0.0202]
[1633052798756,0.159,43739.0,43734.0,0.0202]
[1633052799159,0.159,43739.0,43735.0,0.228079]
[1633052799361,0.059,43739.0,43735.0,0.228079]
[1633052799557,0.159,43739.0,43735.0,0.228079]
[1633052800557,0.059,43739.0,43735.0,0.228079]
[1633052800758,0.156,43739.0,43735.0,0.228079]
[1633052800960,0.056,43739.0,43737.0,0.2232]
[1633052801159,0.056,43739.0,43738.0,0.2293641]
[1633052802157,0.60005567,43743.0,43738.0,0.4525641]
[1633052802358,0.60005567,43743.0,43738.0,0.0012851]
[1633052802759,0.343034,43742.0,43738.0,0.0012851]
[1633052803960,0.1,43741.0,43738.0,0.0012851]
[1633052804359,0.3,43743.0,43738.0,0.0012851]
[1633052804563,0.3,43743.0,43742.0,0.00126345]
[1633052805960,0.528079,43743.0,43742.0,0.00126345]
[1633052806168,0.3,43743.0,43742.0,0.00126345]
[1633052806762,0.354,43743.0,43742.0,0.00126345]
[1633052806964,0.054,43743.0,43742.0,0.00126345]
[1633052807165,0.054,43743.0,43742.0,0.36651707]
[1633052807369,0.38373138,43747.0,43743.0,1.15]
[1633052807563,0.38373138,43747.0,43746.0,1.04419117]
[1633052807764,0.38373138,43747.0,43746.0,1.36829089]
[1633052807965,0.38373138,43747.0,43746.0,1.38612108]
[1633052808165,0.38373138,43747.0,43746.0,1.43612108]
[1633052808365,0.38373138,43747.0,43746.0,1.65932108]
[1633052808566,0.38373138,43747.0,43746.0,2.11648608]
[1633052808766,0.41573138,43747.0,43746.0,2.15448608]
[1633052809172,6.959e-05,43757.0,43747.0,1.23716311]
[1633052809366,6.959e-05,43757.0,43753.0,0.00129132]
[1633052809367,0.22266866,43757.0,43753.0,0.00129132]
[1633052809768,0.56558266,43757.0,43753.0,0.00129132]
[1633052809963,0.228079,43756.0,43753.0,0.16115873]
[1633052810168,0.228079,43756.0,43753.0,0.00129132]
[1633052810367,0.56558266,43757.0,43753.0,0.1595127]
[1633052810568,0.22266866,43757.0,43753.0,0.1595127]
[1633052810969,0.32266866,43757.0,43753.0,0.2045127]
[1633052811168,0.228615,43756.0,43753.0,0.2045127]
[1633052811369,0.228615,43756.0,43754.0,0.23461433]
[1633052811769,0.228615,43756.0,43753.0,0.04629132]
[1633052811973,6.785e-05,43755.0,43753.0,0.04629132]
[1633052812177,6.785e-05,43755.0,43753.0,0.00129132]
[1633052812770,6.785e-05,43755.0,43753.0,0.04729132]
[1633052814172,6.785e-05,43755.0,43753.0,0.00129132]
[1633052814772,6.785e-05,43755.0,43753.0,0.05029132]
[1633052815447,0.442915,43757.0,43755.0,0.5]
[1633052815448,0.09506785,43757.0,43755.0,0.5]
[1633052815575,0.228633,43762.0,43756.0,0.42276348]
[1633052815774,0.228633,43762.0,43757.0,0.0202]
[1633052815972,0.203633,43762.0,43757.0,0.0202]
[1633052816572,0.203633,43762.0,43757.0,0.09428099]
[1633052816772,0.19001383,43761.0,43757.0,0.13928099]
[1633052817574,0.19001383,43761.0,43760.0,0.23748192]
[1633052817773,0.19001383,43761.0,43757.0,0.0652]
[1633052818172,0.19001383,43761.0,43757.0,0.0202]
[1633052818774,0.19001383,43761.0,43757.0,0.0682]
[1633052820180,0.19001383,43761.0,43757.0,0.0202]
[1633052820578,0.19001383,43761.0,43758.0,0.16309392]
[1633052820979,0.19001383,43761.0,43757.0,0.0422]
[1633052821182,0.19001383,43761.0,43757.0,0.0624]
[1633052821780,0.19001383,43761.0,43757.0,0.22488466]
[1633052821979,0.19001383,43761.0,43757.0,0.0624]
[1633052822581,6.495e-05,43760.0,43757.0,0.0624]
[1633052822784,6.495e-05,43760.0,43757.0,0.0672]
[1633052824182,6.495e-05,43760.0,43757.0,0.0202]
[1633052824784,6.495e-05,43760.0,43757.0,0.0662]
[1633052826185,6.495e-05,43760.0,43757.0,0.0202]
[1633052826785,6.495e-05,43760.0,43757.0,0.0642]
[1633052827385,6.495e-05,43760.0,43757.0,0.407029]
[1633052828187,6.495e-05,43760.0,43757.0,0.363029]
[1633052828787,6.495e-05,43760.0,43757.0,0.0672]
[1633052830188,6.495e-05,43760.0,43757.0,0.0202]
[1633052830991,6.495e-05,43760.0,43757.0,0.0652]
[1633052832191,6.495e-05,43760.0,43757.0,0.0202]
[1633052832989,0.07245273,43759.0,43757.0,0.0672]
[1633052833451,6.495e-05,43760.0,43757.0,0.0672]
[1633052834391,6.495e-05,43760.0,43757.0,0.0202]
[1633052834591,6.495e-05,43760.0,43759.0,0.22315039]
[1633052835393,6.495e-05,43760.0,43757.0,0.0622]
[1633052836596,6.495e-05,43760.0,43757.0,0.0202]
[1633052837000,6.495e-05,43760.0,43757.0,0.0642]
[1633052838194,6.495e-05,43760.0,43757.0,0.0202]
[1633052838995,6.495e-05,43760.0,43757.0,0.0632]
[1633052839458,6.495e-05,43760.0,43757.0,0.043]
[1633052839700,0.528079,43759.0,43757.0,0.043]
[1633052840099,0.1,43758.0,43757.0,0.043]
[1633052840298,0.328079,43758.0,43757.0,0.043]
[1633052840497,0.228643,43756.0,43747.0,0.08716311]
[1633052840700,0.39598024,43755.0,43747.0,0.08716311]
[1633052841098,0.1,43754.0,43747.0,0.08716311]
[1633052841402,0.32077777,43749.0,43747.0,0.08716311]
[1633052841602,0.00120589,43748.0,43747.0,0.08716311]
[1633052841802,0.1,43748.0,43747.0,0.08716311]
[1633052842003,0.38711377,43749.0,43747.0,0.08716311]
[1633052842464,0.228675,43749.0,43747.0,0.08716311]
[1633052843002,0.228675,43749.0,43747.0,0.12916311]
[1633052843403,0.571648,43749.0,43747.0,0.12916311]
[1633052843802,0.228675,43749.0,43747.0,0.12916311]
[1633052844405,0.228675,43749.0,43747.0,0.08716311]
[1633052845004,0.228675,43749.0,43747.0,0.12916311]
[1633052846206,0.571649,43749.0,43747.0,0.12916311]
[1633052846404,0.571649,43749.0,43747.0,0.08716311]
[1633052847005,0.571649,43749.0,43747.0,0.12616311]
[1633052848205,0.571649,43749.0,43747.0,0.08716311]
[1633052849007,0.571649,43749.0,43747.0,0.12816311]
[1633052850206,0.571649,43749.0,43747.0,0.08716311]
[1633052851006,0.228675,43749.0,43747.0,0.12816311]
[1633052852413,0.233675,43749.0,43747.0,0.12816311]
[1633052852809,0.233675,43749.0,43747.0,0.08716311]
[1633052853011,0.233675,43749.0,43747.0,0.12616311]
[1633052854512,0.233675,43749.0,43748.0,0.00026311]
[1633052854913,0.233675,43749.0,43748.0,0.03126311]
[1633052856514,0.39005607,43749.0,43748.0,0.03126311]
[1633052856715,0.233675,43749.0,43748.0,0.03126311]
[1633052856916,0.233675,43749.0,43748.0,0.06226311]
[1633052857116,0.233675,43749.0,43748.0,0.03126311]
[1633052857315,0.233675,43749.0,43748.0,0.00026311]
[1633052859117,0.233675,43749.0,43748.0,0.03126311]
[1633052860819,0.233675,43749.0,43748.0,0.00026311]
[1633052861020,0.233675,43749.0,43748.0,0.03126311]
[1633052861621,0.233675,43749.0,43748.0,0.00026311]
[1633052863023,0.233675,43749.0,43748.0,0.03226311]
[1633052864222,0.005,43749.0,43748.0,0.03226311]
[1633052864422,0.005,43749.0,43748.0,0.00026311]
[1633052864623,0.233079,43749.0,43748.0,0.00026311]
[1633052865022,0.233079,43749.0,43748.0,0.03126311]
[1633052865525,0.7934913,43749.0,43748.0,0.03126311]
[1633052865921,0.333079,43749.0,43748.0,0.03126311]
[1633052866322,0.333079,43749.0,43748.0,0.00026311]
[1633052866924,0.105,43749.0,43748.0,0.00026311]
[1633052867123,0.333079,43749.0,43748.0,0.03126311]
[1633052867324,0.48954454,43749.0,43748.0,0.03126311]
[1633052867523,0.333079,43749.0,43748.0,0.03126311]
[1633052868327,0.333079,43749.0,43748.0,0.00026311]
[1633052869131,0.376079,43749.0,43748.0,0.03226311]
[1633052869725,0.53617533,43749.0,43748.0,0.03226311]
[1633052870327,0.49317533,43749.0,43748.0,0.00026311]
[1633052870529,0.66003533,43749.0,43748.0,0.00026311]
[1633052871127,0.70603533,43749.0,43748.0,0.03326311]
[1633052872133,0.545939,43749.0,43748.0,0.03326311]
[1633052872729,0.499939,43749.0,43748.0,0.00026311]
[1633052873129,0.550939,43749.0,43748.0,0.03426311]
[1633052873328,0.384079,43749.0,43748.0,0.03426311]
[1633052874330,0.333079,43749.0,43748.0,0.00026311]
[1633052875131,0.333079,43749.0,43748.0,0.03326311]
[1633052875132,0.384079,43749.0,43748.0,0.03326311]
[1633052876390,0.333079,43749.0,43748.0,0.00026311]
[1633052876992,0.333079,43749.0,43748.0,0.03426311]
[1633052877190,0.384079,43749.0,43748.0,0.03426311]
[1633052878390,0.333079,43749.0,43748.0,0.00026311]
[1633052879191,0.384079,43749.0,43748.0,0.03326311]
[1633052880593,0.333079,43749.0,43748.0,0.00026311]
[1633052881197,0.383079,43749.0,43748.0,0.03126311]
[1633052882397,0.333079,43749.0,43748.0,0.00026311]
[1633052883198,0.383079,43749.0,43748.0,0.03126311]
[1633052884602,0.443079,43749.0,43748.0,0.00026311]
[1633052885210,0.494079,43749.0,43748.0,0.03026311]
[1633052886805,0.443079,43749.0,43748.0,0.00026311]
[1633052887204,0.494079,43749.0,43748.0,0.03026311]
[1633052889011,0.443079,43749.0,43748.0,0.00026311]
[1633052889210,0.486079,43749.0,43748.0,0.02826311]
[1633052890612,0.443079,43749.0,43748.0,0.00026311]
[1633052891213,0.494079,43749.0,43748.0,0.03026311]
[1633052892214,0.493379,43749.0,43748.0,0.03026311]
[1633052892616,0.493379,43749.0,43748.0,0.00026311]
[1633052892617,0.442379,43749.0,43748.0,0.00026311]
[1633052893215,0.493379,43749.0,43748.0,0.03026311]
[1633052895219,0.494379,43749.0,43748.0,0.02326311]
[1633052896422,0.494379,43749.0,43748.0,0.00026311]
[1633052896618,0.44287849,43749.0,43748.0,0.00026311]
[1633052897220,0.49487849,43749.0,43748.0,0.02326311]
[1633052898421,0.44287849,43749.0,43748.0,0.00026311]
[1633052898623,0.11479949,43749.0,43748.0,0.53545531]
[1633052898825,0.11479949,43749.0,43748.0,0.78373431]
[1633052899027,9.949e-05,43749.0,43748.0,1.23426441]
[1633052899222,0.04109949,43749.0,43748.0,0.82226441]
[1633052899426,0.0660766,43759.0,43752.0,0.05]
[1633052899626,0.18518065,43766.0,43758.0,0.00125518]
[1633052899822,0.18518065,43766.0,43763.0,0.00120546]
[1633052900025,0.11124346,43764.0,43763.0,0.00120546]
[1633052900426,0.005,43764.0,43763.0,0.00120546]
[1633052900627,0.0999,43763.0,43762.0,0.20739841]
[1633052900821,0.0999,43763.0,43762.0,0.25739841]
[1633052901224,0.328481,43763.0,43762.0,0.29039841]
[1633052901425,0.328481,43763.0,43762.0,0.44632111]
[1633052902223,0.328481,43763.0,43762.0,0.44132111]
[1633052902623,0.328481,43763.0,43762.0,0.40832111]
[1633052902821,0.228581,43763.0,43762.0,0.40832111]
[1633052903223,0.228581,43763.0,43762.0,0.44132111]
[1633052903423,0.005,43764.0,43762.0,0.44132111]
[1633052903623,0.005,43764.0,43763.0,0.16292064]
[1633052903820,0.005,43764.0,43762.0,0.28539841]
[1633052904622,0.11327247,43764.0,43762.0,0.25239841]
[1633052905221,0.11327247,43764.0,43762.0,0.28539841]
[1633052906026,0.10827247,43764.0,43762.0,0.28539841]
[1633052906823,0.10827247,43764.0,43762.0,0.25239841]
[1633052907224,0.10827247,43764.0,43762.0,0.29039841]
[1633052907425,0.342866,43765.0,43762.0,0.29039841]
[1633052907624,0.18518065,43766.0,43763.0,0.0005301]
[1633052908423,0.0876639,43765.0,43763.0,0.0005301]
[1633052908823,0.0876639,43765.0,43762.0,0.25292851]
[1633052909025,0.0826639,43765.0,43762.0,0.25239841]
[1633052909224,0.4255269,43765.0,43763.0,0.037]
[1633052909428,0.18868277,43756.0,43749.0,0.9442057]
[1633052909634,0.18868277,43756.0,43738.0,0.56657259]
[1633052909635,0.74343912,43748.0,43738.0,0.56657259]
[1633052909834,1.44084222,43748.0,43738.0,0.5594]
[1633052910031,1.56226691,43748.0,43733.0,0.08229347]
[1633052910231,3.08176845,43748.0,43733.0,0.08229347]
[1633052910427,0.00250283,43734.0,43733.0,0.08229347]
[1633052910629,0.6404995,43734.0,43733.0,0.08229347]
[1633052910835,0.8685785,43734.0,43733.0,0.08229347]
[1633052911026,0.9685785,43734.0,43733.0,0.08229347]
[1633052911226,0.9685785,43734.0,43733.0,0.12229347]
[1633052911512,1.3117785,43734.0,43733.0,0.12229347]
[1633052912626,1.3117785,43734.0,43733.0,0.08229347]
[1633052913226,1.3117785,43734.0,43733.0,0.12029347]
[1633052914632,1.3319785,43734.0,43733.0,0.08229347]
[1633052915027,0.45,43733.0,43727.0,0.00028]
[1633052915230,0.00122097,43728.0,43727.0,0.00028]
[1633052915431,0.47404684,43728.0,43727.0,0.00028]
[1633052915628,0.97758613,43728.0,43727.0,0.00028]
[1633052915830,0.67305907,43728.0,43727.0,0.00028]
[1633052916033,0.571308,43728.0,43727.0,0.00028]
[1633052916231,0.343229,43728.0,43727.0,0.00028]
[1633052917230,0.343229,43728.0,43727.0,0.04228]
[1633052917626,0.571308,43728.0,43727.0,0.04228]
[1633052918630,0.87257377,43728.0,43727.0,0.04228]
[1633052918829,0.97310387,43728.0,43727.0,0.04228]
[1633052919228,0.97257377,43728.0,43727.0,0.07928]
[1633052920030,0.97310387,43728.0,43727.0,0.07928]
[1633052920230,0.97150387,43728.0,43727.0,0.07928]
[1633052920492,0.97150387,43728.0,43727.0,0.03728]
[1633052920631,0.97150387,43728.0,43727.0,0.00028]
[1633052921237,0.97150387,43728.0,43727.0,0.02928]
[1633052922833,0.97150387,43728.0,43727.0,0.00028]
[1633052923234,0.97150387,43728.0,43727.0,0.02728]
[1633052924833,0.97097377,43728.0,43727.0,0.02728]
[1633052925035,1.08097377,43728.0,43727.0,0.02728]
[1633052925434,1.08150387,43728.0,43727.0,0.02728]
[1633052925836,1.08150387,43728.0,43727.0,0.00028]
[1633052927238,1.08150387,43728.0,43727.0,0.02928]
[1633052928641,1.08150387,43728.0,43727.0,0.00028]
[1633052928642,1.10170387,43728.0,43727.0,0.00028]
[1633052929239,1.10170387,43728.0,43727.0,0.03728]
[1633052930645,1.10170387,43728.0,43727.0,0.00028]
[1633052931844,1.10170387,43728.0,43727.0,0.03828]
[1633052932647,1.10170387,43728.0,43727.0,0.00028]
[1633052933047,0.65,43727.0,43711.0,0.04083416]
[1633052933248,0.65,43727.0,43711.0,0.73657493]
[1633052933249,0.00123706,43715.0,43711.0,0.73657493]
[1633052933446,0.2984,43725.0,43712.0,0.228079]
[1633052933447,0.22557116,43724.0,43712.0,0.228079]
[1633052933647,0.22557116,43724.0,43711.0,0.04083416]
[1633052933845,0.0005301,43723.0,43711.0,0.04083416]
[1633052934045,0.0005301,43723.0,43713.0,0.11113319]
[1633052934046,0.08445596,43721.0,43713.0,0.11113319]
[1633052934246,0.17579139,43720.0,43713.0,0.11113319]
[1633052934444,0.17632149,43720.0,43713.0,0.11113319]
[1633052934845,0.0005301,43719.0,43713.0,0.11113319]
[1633052935045,0.1,43719.0,43712.0,0.07682824]
[1633052935250,0.228852,43714.0,43713.0,0.051]
[1633052935510,0.39681441,43714.0,43713.0,0.051]
[1633052936448,0.328852,43714.0,43713.0,0.051]
[1633052936650,0.328852,43714.0,43711.0,0.04083416]
[1633052936850,0.16136531,43713.0,43711.0,0.04083416]
[1633052937051,0.34329,43712.0,43711.0,0.04083416]
[1633052937249,0.34329,43712.0,43711.0,0.09083416]
[1633052937853,0.50510174,43712.0,43711.0,0.09083416]
[1633052938049,0.036,43713.0,43711.0,0.09083416]
[1633052938652,0.39136118,43714.0,43711.0,0.04083416]
[1633052938852,0.39009651,43714.0,43711.0,0.04083416]
[1633052939051,0.228852,43714.0,43713.0,2.04714755]
[1633052939255,0.228852,43714.0,43713.0,2.27522655]
[1633052939455,0.264852,43714.0,43713.0,2.27522655]
[1633052939654,0.43339856,43714.0,43713.0,0.228079]
[1633052939854,0.43339856,43714.0,43711.0,0.08683416]
[1633052940655,0.343285,43713.0,43711.0,0.08683416]
[1633052940857,0.16525837,43712.0,43711.0,0.03583416]
[1633052941257,0.343285,43713.0,43711.0,0.03583416]
[1633052941518,0.343285,43713.0,43711.0,0.08283416]
[1633052941519,0.035,43712.0,43711.0,0.08283416]
[1633052942859,0.16140659,43712.0,43711.0,0.03583416]
[1633052943459,0.19840659,43712.0,43711.0,0.08383416]
[1633052943861,0.037,43712.0,43711.0,0.08383416]
[1633052944521,0.1973324,43712.0,43711.0,0.08383416]
[1633052944663,0.20580939,43712.0,43711.0,0.03583416]
[1633052944860,0.27880939,43712.0,43711.0,0.03583416]
[1633052945461,0.32580939,43712.0,43711.0,0.08283416]
[1633052945662,0.157,43712.0,43711.0,0.08283416]
[1633052946661,0.157,43712.0,43711.0,0.03583416]
[1633052946863,0.27166458,43712.0,43711.0,0.03583416]
[1633052947266,0.27257905,43712.0,43711.0,0.03583416]
[1633052947530,0.32192148,43712.0,43711.0,0.08283416]
[1633052947664,0.1575301,43712.0,43711.0,0.08283416]
[1633052948067,0.157,43712.0,43711.0,0.08283416]
[1633052948265,0.32349431,43712.0,43711.0,0.08283416]
[1633052948665,0.11,43712.0,43711.0,0.03583416]
[1633052949466,0.157,43712.0,43711.0,0.08383416]
[1633052949669,0.157,43712.0,43711.0,0.08512705]
[1633052949873,0.157,43712.0,43711.0,1.01320605]
[1633052950068,0.157,43712.0,43711.0,0.36320605]
[1633052950668,0.157,43712.0,43711.0,0.57185675]
[1633052950870,0.157,43712.0,43711.0,0.85815365]
[1633052951068,0.45051219,43723.0,43712.0,0.9]
[1633052951271,0.343205,43719.0,43717.0,0.00124881]
[1633052953470,0.377205,43719.0,43717.0,0.04524881]
[1633052953672,0.034,43719.0,43717.0,0.04524881]
[1633052954873,0.1,43722.0,43717.0,0.00124881]
[1633052955078,0.3432,43720.0,43717.0,0.00124881]
[1633052955477,0.1,43719.0,43717.0,0.04524881]
[1633052956078,0.443209,43719.0,43717.0,0.04524881]
[1633052956537,0.553209,43719.0,43717.0,0.04524881]
[1633052956881,0.553209,43719.0,43717.0,0.00124881]
[1633052957484,0.553209,43719.0,43717.0,0.04424881]
[1633052957485,0.589209,43719.0,43717.0,0.04424881]
[1633052957687,0.246,43719.0,43717.0,0.04424881]
[1633052957882,0.146,43719.0,43717.0,0.04424881]
[1633052958684,0.11,43719.0,43718.0,2.00238764]
[1633052959086,0.11,43719.0,43717.0,0.00124881]
[1633052959287,0.11,43719.0,43718.0,0.0012412]
[1633052959566,0.122,43719.0,43718.0,0.0472412]
[1633052960486,0.465206,43719.0,43718.0,0.0472412]
[1633052960886,0.453206,43719.0,43718.0,0.0012412]
[1633052961486,0.491206,43719.0,43718.0,0.0472412]
[1633052961686,0.148,43719.0,43718.0,0.0472412]
[1633052962889,0.11,43719.0,43718.0,0.0012412]
[1633052963486,0.117,43719.0,43718.0,0.0492412]
[1633052965550,0.146,43719.0,43718.0,0.0482412]
[1633052966295,0.146,43719.0,43718.0,0.00121948]
[1633052967090,0.11,43719.0,43718.0,0.00121948]
[1633052967490,0.23475491,43719.0,43718.0,0.04721948]
[1633052968792,0.18575491,43719.0,43718.0,0.00121948]
[1633052969395,0.23475491,43719.0,43718.0,0.04721948]
[1633052970192,0.47542074,43719.0,43718.0,0.04721948]
[1633052970392,0.70349974,43719.0,43718.0,0.04721948]
[1633052970591,0.46336401,43719.0,43718.0,0.04721948]
[1633052970793,0.18575491,43719.0,43718.0,0.00121948]
[1633052970995,0.11,43719.0,43718.0,0.00121948]
[1633052971391,0.148,43719.0,43718.0,0.04621948]
[1633052971991,0.2384576,43719.0,43718.0,0.04621948]
[1633052972791,0.2004576,43719.0,43718.0,0.00121948]
[1633052972992,0.2009177,43719.0,43718.0,0.00121948]
[1633052973395,0.2469177,43719.0,43718.0,0.03421948]
[1633052973591,0.2463876,43719.0,43718.0,0.03421948]
[1633052975196,0.2003876,43719.0,43718.0,0.00121948]
[1633052975394,0.2463876,43719.0,43718.0,0.03421948]
[1633052976001,0.2469177,43719.0,43718.0,0.03421948]
[1633052976197,0.2463876,43719.0,43718.0,0.03421948]
[1633052976997,0.2003876,43719.0,43718.0,0.00121948]
[1633052977197,0.10993,43719.0,43718.0,0.00121948]
[1633052977396,0.15593,43719.0,43718.0,0.03421948]
[1633052978796,0.10993,43719.0,43718.0,0.00121948]
[1633052979396,0.38368848,43719.0,43718.0,0.04021948]
[1633052980799,0.33368848,43719.0,43718.0,0.00121948]
[1633052981001,0.33421858,43719.0,43718.0,0.00121948]
[1633052981201,0.33368848,43719.0,43718.0,0.00121948]
[1633052981400,0.38468848,43719.0,43718.0,0.03721948]
[1633052983401,0.21093,43719.0,43718.0,0.07421948]
[1633052984600,0.21093,43719.0,43718.0,0.06921948]
[1633052985002,0.15993,43719.0,43718.0,0.037]
[1633052985200,0.15993,43719.0,43717.0,0.00129462]
[1633052985201,0.453136,43719.0,43717.0,0.00129462]
[1633052985400,0.503136,43719.0,43718.0,0.037]
[1633052986862,0.503136,43719.0,43715.0,1.96000804]
[1633052987062,0.453136,43719.0,43715.0,1.89467911]
[1633052987461,0.480136,43719.0,43715.0,1.94567911]
[1633052987861,0.480136,43719.0,43715.0,2.01100883]
[1633052988062,0.480136,43719.0,43715.0,1.94567911]
[1633052988663,0.480136,43719.0,43715.0,2.01101066]
[1633052988864,0.480136,43719.0,43715.0,1.96001066]
[1633052989068,0.453136,43719.0,43715.0,1.96001066]
[1633052989565,0.480136,43719.0,43715.0,2.01101066]
[1633052990168,0.480136,43719.0,43715.0,1.94567911]
[1633052990771,0.22691346,43716.0,43715.0,0.051]
[1633052990969,0.22691346,43716.0,43713.0,0.11536613]
[1633052991171,0.18238301,43718.0,43713.0,0.06536613]
[1633052991369,0.453136,43719.0,43713.0,0.06536613]
[1633052991572,0.453136,43719.0,43713.0,0.12136613]
[1633052992171,0.21291453,43718.0,43713.0,0.12136613]
[1633052992371,0.38981608,43718.0,43713.0,0.12136613]
[1633052992574,0.21291453,43718.0,43713.0,0.12136613]
[1633052992972,0.21291453,43718.0,43713.0,0.06536613]
[1633052992973,0.39155359,43718.0,43713.0,0.06536613]
[1633052993172,0.17863906,43718.0,43713.0,0.06536613]
[1633052993373,0.17864858,43718.0,43713.0,0.06536613]
[1633052993571,0.17864858,43718.0,43713.0,0.12036613]
[1633052994175,0.07255354,43716.0,43713.0,0.12036613]
[1633052994385,0.07255354,43716.0,43713.0,0.055]
[1633052994386,0.55374068,43714.0,43713.0,0.055]
[1633052994577,1.46821,43714.0,43713.0,0.055]
[1633052994782,1.8620761,43714.0,43713.0,0.055]
[1633052994973,1.8620761,43714.0,43700.0,0.06541074]
[1633052995174,0.18912482,43700.0,43699.0,0.06543105]
[1633052995378,0.22269487,43700.0,43699.0,0.228079]
[1633052995976,0.22269487,43700.0,43698.0,0.00028]
[1633052996172,0.18080603,43699.0,43695.0,0.06067495]
[1633052996375,0.18080603,43699.0,43696.0,0.228079]
[1633052996574,0.1817017,43702.0,43696.0,0.228079]
[1633052996776,0.17818289,43702.0,43696.0,0.228079]
[1633052996977,0.17818289,43702.0,43696.0,0.278079]
[1633052997174,0.19432104,43705.0,43700.0,0.12444542]
[1633052997373,0.19379094,43705.0,43700.0,0.12444542]
[1633052997575,0.343341,43703.0,43700.0,0.12444542]
[1633052997976,0.18004863,43702.0,43700.0,0.12444542]
[1633052998173,0.17894361,43702.0,43696.0,0.75620691]
[1633052998373,0.17894361,43702.0,43697.0,0.228079]
[1633052998577,0.17894361,43702.0,43696.0,0.056]
[1633052998772,0.343339,43700.0,43696.0,0.056]
[1633052998977,0.18518269,43699.0,43694.0,0.1766]
[1633052999175,0.18518269,43699.0,43696.0,0.1149538]
[1633052999375,0.19588909,43702.0,43697.0,0.228079]
[1633052999575,0.19588909,43702.0,43696.0,0.79228499]
[1633052999776,0.19588909,43702.0,43696.0,0.1149538]
[1633053000377,0.00121876,43697.0,43694.0,0.2346]
[1633053000574,0.00121876,43697.0,43695.0,0.228079]
[1633053000973,0.29588909,43702.0,43695.0,0.228079]
[1633053001180,0.29588909,43702.0,43694.0,0.1766]
[1633053001372,0.29588909,43702.0,43696.0,0.09267908]
[1633053001773,0.27926869,43702.0,43696.0,0.09267908]
[1633053002174,0.22893,43698.0,43696.0,0.09267908]
[1633053002375,0.572296,43698.0,43696.0,0.09267908]
[1633053003376,0.17879618,43697.0,43696.0,0.09267908]
[1633053003573,0.17879618,43697.0,43696.0,0.14967908]
[1633053003774,0.572296,43698.0,43696.0,0.14967908]
[1633053005178,0.572296,43698.0,43696.0,0.09267908]
[1633053005576,0.572296,43698.0,43696.0,0.14867908]
[1633053005978,0.572296,43698.0,43696.0,0.056]
[1633053006779,0.682296,43698.0,43696.0,0.056]
[1633053006980,0.33893,43698.0,43694.0,0.1766]
[1633053007182,0.33893,43698.0,43696.0,0.09503896]
[1633053008181,0.33893,43698.0,43694.0,0.2346]
[1633053008381,0.52458925,43697.0,43694.0,0.2346]
[1633053008987,0.11,43698.0,43695.0,0.0702]
[1633053009183,0.11,43698.0,43697.0,0.7988633]
[1633053009384,0.11,43698.0,43697.0,1.0769423]
[1633053009785,0.22888,43707.0,43706.0,0.11433524]
[1633053010386,0.22888,43707.0,43700.0,0.09628917]
[1633053010784,0.22888,43707.0,43700.0,2.57006374]
[1633053010983,0.22888,43707.0,43700.0,2.47377457]
[1633053011383,0.22888,43707.0,43705.0,0.11205951]
[1633053011582,0.1878624,43706.0,43705.0,0.11205951]
[1633053013584,0.015,43706.0,43705.0,0.16405951]
[1633053014786,0.42081304,43707.0,43700.0,2.47377457]
[1633053014991,0.1,43706.0,43700.0,2.47377457]
[1633053015392,0.34334,43703.0,43700.0,2.47377457]
[1633053015589,0.228912,43702.0,43700.0,2.47377457]
[1633053015789,0.1,43702.0,43701.0,0.10409162]
[1633053015990,0.228896,43705.0,43701.0,0.33217062]
[1633053016193,0.228896,43705.0,43702.0,0.228079]
[1633053016388,0.11,43703.0,43702.0,0.228079]
[1633053018791,0.29455441,43703.0,43702.0,0.228079]
[1633053019591,0.31955441,43703.0,43702.0,0.286079]
[1633053020194,0.135,43703.0,43702.0,0.286079]
[1633053020793,0.11,43703.0,43702.0,0.228079]
[1633053021192,0.131,43703.0,43702.0,0.287079]
[1633053022396,0.11,43703.0,43702.0,0.228079]
[1633053022593,0.11,43703.0,43700.0,2.47377457]
[1633053023195,0.11,43703.0,43700.0,2.53277457]
[1633053023396,0.11,43703.0,43701.0,0.228079]
[1633053023594,0.453342,43703.0,43701.0,0.228079]
[1633053024401,0.17982538,43702.0,43700.0,0.059]
[1633053024595,0.343375,43699.0,43695.0,0.06560177]
[1633053024799,0.343375,43699.0,43696.0,0.228079]
[1633053025196,0.20136582,43702.0,43696.0,0.228079]
[1633053025398,0.18686688,43701.0,43697.0,0.11624455]
[1633053025798,0.343356,43700.0,43697.0,0.11624455]
[1633053027198,0.343356,43700.0,43697.0,0.16924455]
[1633053027800,0.18686688,43701.0,43697.0,0.16924455]
[1633053028401,0.18686688,43701.0,43697.0,0.11624455]
[1633053029204,0.18686688,43701.0,43697.0,0.16924455]
[1633053030403,0.18686688,43701.0,43697.0,0.11624455]
[1633053031207,0.18686688,43701.0,43697.0,0.16924455]
[1633053031407,0.18686688,43701.0,43697.0,0.053]
[1633053032471,0.20136582,43702.0,43698.0,0.09322313]